[Event "Late-Titled-Tuesday-Blitz-September-26-2023"]
[Site "Chess.com"]
[Date "2023.09.26"]
[Round "7"]
[White "Kostukov_Alex"]
[Black "gordonzyxu"]
[Result "0-1"]
[WhiteElo "2396"]
[BlackElo "2201"]
[TimeControl "180+1"]
[EndTime "15:14:52 PDT"]
[Termination "gordonzyxu won by resignation"]

1. g3 {[%clk 0:03:00.9]} 1... Nf6 {[%clk 0:02:59.6]} 2. Bg2 {[%clk 0:02:59.8]}
2... g6 {[%clk 0:03:00.1]} 3. c4 {[%clk 0:02:58.7]} 3... c6 {[%clk 0:03:00.1]}
4. Nf3 {[%clk 0:02:59.6]} 4... Bg7 {[%clk 0:02:59.6]} 5. O-O {[%clk 0:02:59.3]}
5... O-O {[%clk 0:02:59.5]} 6. d4 {[%clk 0:02:59.3]} 6... d5 {[%clk 0:02:59.5]}
7. Ne5 {[%clk 0:02:55.8]} 7... Nbd7 {[%clk 0:02:54.2]} 8. Bf4 {[%clk 0:02:39.4]}
8... Nh5 {[%clk 0:02:50.7]} 9. cxd5 {[%clk 0:02:36.9]} 9... Nxf4 {[%clk
0:02:35.8]} 10. gxf4 {[%clk 0:02:34.1]} 10... cxd5 {[%clk 0:02:35.4]} 11. Bxd5
{[%clk 0:02:29.8]} 11... e6 {[%clk 0:02:36]} 12. Bg2 {[%clk 0:02:28.9]} 12...
Qb6 {[%clk 0:02:27.4]} 13. Qd2 {[%clk 0:02:16.9]} 13... Rd8 {[%clk 0:02:26.8]}
14. Nf3 {[%clk 0:02:07.2]} 14... Nf6 {[%clk 0:02:06.9]} 15. e3 {[%clk
0:02:07.2]} 15... Qd6 {[%clk 0:01:50.6]} 16. Nc3 {[%clk 0:02:05.7]} 16... Bd7
{[%clk 0:01:49.6]} 17. Ne5 {[%clk 0:02:04.2]} 17... Bc6 {[%clk 0:01:45.3]} 18.
Bxc6 {[%clk 0:01:48.9]} 18... bxc6 {[%clk 0:01:46.2]} 19. Rac1 {[%clk
0:01:48.4]} 19... c5 {[%clk 0:01:35.9]} 20. Nb5 {[%clk 0:01:47.8]} 20... Qb6
{[%clk 0:01:36.2]} 21. Rxc5 {[%clk 0:01:45.4]} 21... Qxc5 {[%clk 0:01:35.1]} 22.
Nc3 {[%clk 0:01:30.7]} 22... Qb6 {[%clk 0:01:27.9]} 23. Na4 {[%clk 0:01:18.1]}
23... Qd6 {[%clk 0:01:23.9]} 24. Qa5 {[%clk 0:01:14.4]} 24... Nd7 {[%clk
0:01:08.7]} 25. Nd3 {[%clk 0:01:07.8]} 25... Nb6 {[%clk 0:01:07.1]} 26. Nac5
{[%clk 0:01:07.6]} 26... Rdc8 {[%clk 0:00:53]} 27. Ne5 {[%clk 0:00:59.9]} 27...
Bxe5 {[%clk 0:00:41.5]} 28. fxe5 {[%clk 0:00:58.6]} 28... Qd5 {[%clk 0:00:42.1]}
29. Qa3 {[%clk 0:00:42.3]} 29... Nc4 {[%clk 0:00:40.4]} 30. Qc3 {[%clk
0:00:40.4]} 30... Nxe5 {[%clk 0:00:39.7]} 31. e4 {[%clk 0:00:34.2]} 31... Qc6
{[%clk 0:00:32.9]} 32. b4 {[%clk 0:00:32.9]} 32... Nd7 {[%clk 0:00:31]} 33. Qe3
{[%clk 0:00:13.8]} 33... Nxc5 {[%clk 0:00:30.3]} 34. bxc5 {[%clk 0:00:14.7]}
34... e5 {[%clk 0:00:25.8]} 35. dxe5 {[%clk 0:00:12.8]} 35... Qxc5 {[%clk
0:00:26.2]} 36. Qf4 {[%clk 0:00:13.4]} 36... Re8 {[%clk 0:00:26]} 37. Rd1 {[%clk
0:00:12.7]} 37... Qxe5 {[%clk 0:00:26.3]} 38. Qe3 {[%clk 0:00:11.6]} 38... Qxe4
{[%clk 0:00:25.9]} 39. Qb3 {[%clk 0:00:11.8]} 39... Qg4+ {[%clk 0:00:24.7]} 40.
Kf1 {[%clk 0:00:10.1]} 40... Rab8 {[%clk 0:00:23.6]} 41. Qc2 {[%clk 0:00:09.2]}
41... Rbc8 {[%clk 0:00:20.9]} 42. Qd2 {[%clk 0:00:09.3]} 42... Rcd8 {[%clk
0:00:20]} 43. Qxd8 {[%clk 0:00:08.6]} 43... Rxd8 {[%clk 0:00:20.6]} 44. Rxd8+
{[%clk 0:00:08.9]} 44... Kg7 {[%clk 0:00:21.5]} 45. Rd2 {[%clk 0:00:07.3]} 45...
Qc4+ {[%clk 0:00:21.2]} 46. Ke1 {[%clk 0:00:06.6]} 46... Qc3 {[%clk 0:00:21.2]}
47. Ke2 {[%clk 0:00:06.9]} 47... Kf6 {[%clk 0:00:21.4]} 48. Rd3 {[%clk
0:00:06.4]} 48... Qc2+ {[%clk 0:00:20.6]} 49. Rd2 {[%clk 0:00:06.8]} 49... Qe4+
{[%clk 0:00:21.2]} 50. Kf1 {[%clk 0:00:04.9]} 50... Qh1+ {[%clk 0:00:21.9]} 51.
Ke2 {[%clk 0:00:05.2]} 51... Qxh2 {[%clk 0:00:22.8]} 52. Rd3 {[%clk 0:00:05.4]}
52... Qe5+ {[%clk 0:00:23.1]} 53. Re3 {[%clk 0:00:05.3]} 53... Qb2+ {[%clk
0:00:23.8]} 54. Kf3 {[%clk 0:00:05.9]} 54... Qxa2 {[%clk 0:00:24.7]} 0-1

[Event "Late-Titled-Tuesday-Blitz-September-26-2023"]
[Site "Chess.com"]
[Date "2023.09.26"]
[Round "7"]
[White "dorpato"]
[Black "Sacbutt"]
[Result "1-0"]
[WhiteElo "2036"]
[BlackElo "2254"]
[TimeControl "180+1"]
[EndTime "15:14:54 PDT"]
[Termination "dorpato won on time"]

1. e4 {[%clk 0:02:42.7]} 1... e6 {[%clk 0:02:59.3]} 2. d4 {[%clk 0:02:42.1]}
2... d5 {[%clk 0:02:59.7]} 3. e5 {[%clk 0:02:42.7]} 3... c5 {[%clk 0:02:59.4]}
4. c3 {[%clk 0:02:43.3]} 4... Nc6 {[%clk 0:02:59.6]} 5. Nf3 {[%clk 0:02:43.4]}
5... Qb6 {[%clk 0:02:59.7]} 6. a3 {[%clk 0:02:44]} 6... c4 {[%clk 0:02:59.4]} 7.
Nbd2 {[%clk 0:02:42.2]} 7... Bd7 {[%clk 0:02:59.1]} 8. Rb1 {[%clk 0:02:38.8]}
8... Na5 {[%clk 0:02:51.1]} 9. h4 {[%clk 0:02:03.9]} 9... Nb3 {[%clk 0:02:34.4]}
10. Nxb3 {[%clk 0:01:54.7]} 10... Ba4 {[%clk 0:02:34.5]} 11. Nfd2 {[%clk
0:01:49.1]} 11... Rc8 {[%clk 0:02:14.8]} 12. Be2 {[%clk 0:01:43.5]} 12... Ne7
{[%clk 0:02:10.2]} 13. h5 {[%clk 0:01:34.2]} 13... Nc6 {[%clk 0:02:07.8]} 14.
O-O {[%clk 0:01:31.5]} 14... Na5 {[%clk 0:02:07.4]} 15. Qe1 {[%clk 0:01:28.1]}
15... Bxb3 {[%clk 0:02:00.7]} 16. Bd1 {[%clk 0:01:18.6]} 16... Bxd1 {[%clk
0:01:57.2]} 17. Qxd1 {[%clk 0:01:19.5]} 17... h6 {[%clk 0:01:53.8]} 18. Qa4+
{[%clk 0:01:08.4]} 18... Rc6 {[%clk 0:01:30.7]} 19. b4 {[%clk 0:01:04.7]} 19...
cxb3 {[%clk 0:01:26.8]} 20. Nxb3 {[%clk 0:01:02.7]} 20... Nxb3 {[%clk
0:01:00.9]} 21. Rxb3 {[%clk 0:01:01.9]} 21... Qc7 {[%clk 0:01:00.9]} 22. Qxa7
{[%clk 0:00:59.3]} 22... Be7 {[%clk 0:01:01.1]} 23. Rxb7 {[%clk 0:00:54.9]}
23... Qd8 {[%clk 0:00:54.1]} 24. Qa4 {[%clk 0:00:36.6]} 24... Qc8 {[%clk
0:00:48.5]} 25. Rb6 {[%clk 0:00:34]} 25... Kd7 {[%clk 0:00:46.7]} 26. Bd2 {[%clk
0:00:20.5]} 26... Qc7 {[%clk 0:00:43.9]} 27. Rfb1 {[%clk 0:00:19.2]} 27... Ra8
{[%clk 0:00:20]} 28. Qxa8 {[%clk 0:00:17.7]} 28... Rxb6 {[%clk 0:00:20.5]} 29.
Qa4+ {[%clk 0:00:16.8]} 29... Kc8 {[%clk 0:00:18.6]} 30. Qe8+ {[%clk 0:00:15.6]}
30... Bd8 {[%clk 0:00:19]} 31. Rxb6 {[%clk 0:00:14.4]} 31... Qxb6 {[%clk
0:00:19.9]} 32. Qa4 {[%clk 0:00:14.4]} 32... Qb1+ {[%clk 0:00:19.4]} 33. Kh2
{[%clk 0:00:14.6]} 33... Qd3 {[%clk 0:00:19.7]} 34. Qc6+ {[%clk 0:00:14]} 34...
Bc7 {[%clk 0:00:19.6]} 35. Qe8+ {[%clk 0:00:13.9]} 35... Kb7 {[%clk 0:00:19.6]}
36. Be3 {[%clk 0:00:12.8]} 36... Qxc3 {[%clk 0:00:19]} 37. Qxf7 {[%clk 0:00:13]}
37... Qxa3 {[%clk 0:00:14.6]} 38. Qxe6 {[%clk 0:00:13.1]} 38... Qf8 {[%clk
0:00:05.6]} 39. Qxd5+ {[%clk 0:00:13]} 39... Kb8 {[%clk 0:00:05.4]} 40. Qf3
{[%clk 0:00:11.5]} 40... Qe7 {[%clk 0:00:05.4]} 41. Qh3 {[%clk 0:00:10.8]} 41...
Qd8 {[%clk 0:00:04]} 42. Qg4 {[%clk 0:00:09.7]} 42... Qe7 {[%clk 0:00:04.3]} 43.
Kh3 {[%clk 0:00:09.9]} 43... Bd8 {[%clk 0:00:03.2]} 44. f4 {[%clk 0:00:09.4]}
44... g5 {[%clk 0:00:02.9]} 45. f5 {[%clk 0:00:09.3]} 45... Qa3 {[%clk
0:00:01.9]} 46. Qg3 {[%clk 0:00:08.6]} 1-0

[Event "Late-Titled-Tuesday-Blitz-September-26-2023"]
[Site "Chess.com"]
[Date "2023.09.26"]
[Round "7"]
[White "Firouzja2003"]
[Black "GMBenjaminBok"]
[Result "1-0"]
[WhiteElo "3096"]
[BlackElo "2962"]
[TimeControl "180+1"]
[EndTime "15:14:55 PDT"]
[Termination "Firouzja2003 won on time"]

1. e4 {[%clk 0:02:57.8]} 1... c5 {[%clk 0:03:00]} 2. Nf3 {[%clk 0:02:57.3]} 2...
d6 {[%clk 0:03:00.6]} 3. d4 {[%clk 0:02:55.6]} 3... cxd4 {[%clk 0:03:01.5]} 4.
Nxd4 {[%clk 0:02:55.5]} 4... Nf6 {[%clk 0:03:02]} 5. Nc3 {[%clk 0:02:52]} 5...
a6 {[%clk 0:03:01.9]} 6. Bg5 {[%clk 0:02:52.7]} 6... Nbd7 {[%clk 0:03:01.6]} 7.
Qe2 {[%clk 0:02:49.7]} 7... e6 {[%clk 0:02:59.2]} 8. f4 {[%clk 0:02:48.5]} 8...
Qc7 {[%clk 0:02:59]} 9. O-O-O {[%clk 0:02:48.5]} 9... b5 {[%clk 0:02:59.6]} 10.
a3 {[%clk 0:02:48.1]} 10... Be7 {[%clk 0:02:59.7]} 11. g4 {[%clk 0:02:44.8]}
11... Rb8 {[%clk 0:02:48.1]} 12. Bh4 {[%clk 0:02:41]} 12... h6 {[%clk 0:02:47]}
13. Bg2 {[%clk 0:02:25]} 13... b4 {[%clk 0:02:44.9]} 14. axb4 {[%clk 0:02:24.2]}
14... Rxb4 {[%clk 0:02:45.8]} 15. Be1 {[%clk 0:02:24.5]} 15... Qb6 {[%clk
0:02:28.5]} 16. Bf2 {[%clk 0:02:24]} 16... Nc5 {[%clk 0:02:28.2]} 17. b3 {[%clk
0:02:06.5]} 17... Bb7 {[%clk 0:02:14.7]} 18. h4 {[%clk 0:01:32.3]} 18... g6
{[%clk 0:01:00.7]} 19. g5 {[%clk 0:00:47]} 19... hxg5 {[%clk 0:00:57.8]} 20.
hxg5 {[%clk 0:00:46.4]} 20... Rxh1 {[%clk 0:00:58.6]} 21. Bxh1 {[%clk
0:00:42.6]} 21... Nh5 {[%clk 0:00:58.5]} 22. Qe3 {[%clk 0:00:23.1]} 22... Qc7
{[%clk 0:00:17.7]} 23. Kb2 {[%clk 0:00:19.1]} 23... Bf8 {[%clk 0:00:07.7]} 24.
Bf3 {[%clk 0:00:15.8]} 24... Bg7 {[%clk 0:00:05.6]} 25. Bxh5 {[%clk 0:00:15.2]}
25... gxh5 {[%clk 0:00:06.5]} 26. f5 {[%clk 0:00:12.6]} 26... Be5 {[%clk
0:00:04.5]} 27. Bg3 {[%clk 0:00:06.3]} 27... Bxg3 {[%clk 0:00:02.7]} 28. Qxg3
{[%clk 0:00:05.4]} 28... e5 {[%clk 0:00:03.3]} 29. Nde2 {[%clk 0:00:04.5]} 29...
Nxe4 {[%clk 0:00:03.3]} 30. Nxe4 {[%clk 0:00:04.4]} 30... Bxe4 {[%clk
0:00:03.4]} 31. Nc3 {[%clk 0:00:04.4]} 31... Bxf5 {[%clk 0:00:03.6]} 32. Rf1
{[%clk 0:00:03.2]} 32... Bg6 {[%clk 0:00:03.2]} 33. Qf3 {[%clk 0:00:01.4]} 33...
Qb7 {[%clk 0:00:02.2]} 34. Qe2 {[%clk 0:00:01.9]} 34... Qc6 {[%clk 0:00:02]} 35.
Rd1 {[%clk 0:00:02]} 35... a5 {[%clk 0:00:01.5]} 36. Nd5 {[%clk 0:00:02.5]}
36... Re4 {[%clk 0:00:01.4]} 37. Nf6+ {[%clk 0:00:02.5]} 37... Kf8 {[%clk
0:00:01.8]} 38. Nxe4 {[%clk 0:00:02.8]} 38... Bxe4 {[%clk 0:00:01.6]} 39. Qd2
{[%clk 0:00:02.6]} 39... Ke7 {[%clk 0:00:01.5]} 40. c4 {[%clk 0:00:02.5]} 40...
Bg6 {[%clk 0:00:01.4]} 41. Qxa5 {[%clk 0:00:02.4]} 1-0

[Event "Late-Titled-Tuesday-Blitz-September-26-2023"]
[Site "Chess.com"]
[Date "2023.09.26"]
[Round "7"]
[White "German_Bazeev"]
[Black "Arteler"]
[Result "1/2-1/2"]
[WhiteElo "2750"]
[BlackElo "2593"]
[TimeControl "180+1"]
[EndTime "15:15:00 PDT"]
[Termination "Game drawn by repetition"]

1. c4 {[%clk 0:03:00.9]} 1... c6 {[%clk 0:02:59.6]} 2. Nf3 {[%clk 0:03:00.2]}
2... d5 {[%clk 0:03:00]} 3. e3 {[%clk 0:03:01.1]} 3... Nf6 {[%clk 0:03:00.1]} 4.
Nc3 {[%clk 0:03:01.6]} 4... a6 {[%clk 0:02:54.7]} 5. b3 {[%clk 0:02:58.7]} 5...
Bf5 {[%clk 0:02:54.5]} 6. Bb2 {[%clk 0:02:56.1]} 6... h6 {[%clk 0:02:54.7]} 7.
Be2 {[%clk 0:02:55.7]} 7... Nbd7 {[%clk 0:02:52.2]} 8. O-O {[%clk 0:02:33.7]}
8... e5 {[%clk 0:02:47.6]} 9. d4 {[%clk 0:01:57.9]} 9... e4 {[%clk 0:02:46.7]}
10. Ne5 {[%clk 0:01:58.4]} 10... Bd6 {[%clk 0:02:41.7]} 11. Na4 {[%clk
0:01:47.1]} 11... O-O {[%clk 0:02:38.1]} 12. cxd5 {[%clk 0:01:39.2]} 12... cxd5
{[%clk 0:02:36.9]} 13. Rc1 {[%clk 0:01:38.4]} 13... Qe7 {[%clk 0:02:35.9]} 14.
Nxd7 {[%clk 0:01:28.5]} 14... Nxd7 {[%clk 0:02:36.8]} 15. Nc5 {[%clk 0:01:26.3]}
15... Nf6 {[%clk 0:02:15.3]} 16. a4 {[%clk 0:01:18.6]} 16... Rac8 {[%clk
0:02:10.8]} 17. a5 {[%clk 0:01:18.5]} 17... Bxc5 {[%clk 0:01:38]} 18. dxc5
{[%clk 0:01:14.5]} 18... Rxc5 {[%clk 0:01:36.2]} 19. Ba3 {[%clk 0:01:13.8]}
19... Rxc1 {[%clk 0:01:36.2]} 20. Qxc1 {[%clk 0:01:13.6]} 20... Qe5 {[%clk
0:01:24.1]} 21. Bxf8 {[%clk 0:01:12.4]} 21... Kxf8 {[%clk 0:01:25]} 22. Qc5+
{[%clk 0:00:59.9]} 22... Kg8 {[%clk 0:01:24.4]} 23. Qb6 {[%clk 0:00:49.9]} 23...
Bg4 {[%clk 0:01:20.9]} 24. Bxg4 {[%clk 0:00:36.4]} 24... Nxg4 {[%clk 0:01:21.8]}
25. Qd8+ {[%clk 0:00:35.8]} 25... Kh7 {[%clk 0:01:21]} 26. Qh4 {[%clk
0:00:36.5]} 26... f5 {[%clk 0:01:17.9]} 27. Qg3 {[%clk 0:00:35.2]} 27... Qc3
{[%clk 0:01:15]} 28. h3 {[%clk 0:00:35.6]} 28... Nf6 {[%clk 0:01:15.2]} 29. Qf4
{[%clk 0:00:34.6]} 29... Kg6 {[%clk 0:01:15.5]} 30. g4 {[%clk 0:00:33.1]} 30...
fxg4 {[%clk 0:01:16.4]} 31. hxg4 {[%clk 0:00:33.2]} 31... Qxa5 {[%clk
0:00:49.3]} 32. Qf5+ {[%clk 0:00:32.9]} 32... Kf7 {[%clk 0:00:49.9]} 33. Rc1
{[%clk 0:00:33.8]} 33... Qb6 {[%clk 0:00:39.2]} 34. Qc8 {[%clk 0:00:28.5]} 34...
Ne8 {[%clk 0:00:15.1]} 35. Qd7+ {[%clk 0:00:27.8]} 35... Kf8 {[%clk 0:00:15.8]}
36. Qxd5 {[%clk 0:00:27]} 36... Qg6 {[%clk 0:00:14.1]} 37. Qf5+ {[%clk
0:00:24.9]} 37... Qxf5 {[%clk 0:00:14.6]} 38. gxf5 {[%clk 0:00:25.8]} 38... Ke7
{[%clk 0:00:14.1]} 39. Kg2 {[%clk 0:00:23.7]} 39... Nd6 {[%clk 0:00:12.9]} 40.
Kg3 {[%clk 0:00:23.1]} 40... Nxf5+ {[%clk 0:00:12.8]} 41. Kf4 {[%clk 0:00:23.8]}
41... Nd6 {[%clk 0:00:13.7]} 42. Ke5 {[%clk 0:00:24.2]} 42... Nf7+ {[%clk
0:00:08.5]} 43. Kxe4 {[%clk 0:00:24.5]} 43... Kd6 {[%clk 0:00:08.1]} 44. Kf5
{[%clk 0:00:23.4]} 44... g5 {[%clk 0:00:08.1]} 45. Rd1+ {[%clk 0:00:22.4]} 45...
Kc5 {[%clk 0:00:06.9]} 46. e4 {[%clk 0:00:22.9]} 46... Nd6+ {[%clk 0:00:06.7]}
47. Rxd6 {[%clk 0:00:21]} 47... Kxd6 {[%clk 0:00:07.6]} 48. Kf6 {[%clk
0:00:21.9]} 48... Kd7 {[%clk 0:00:07.5]} 49. Kf7 {[%clk 0:00:11.6]} 49... Kd6
{[%clk 0:00:07.5]} 50. Kf6 {[%clk 0:00:11.2]} 50... Kd7 {[%clk 0:00:06.6]} 51.
Kf7 {[%clk 0:00:11.4]} 51... Kd6 {[%clk 0:00:05.6]} 52. Kf6 {[%clk 0:00:11.7]}
1/2-1/2

[Event "Late-Titled-Tuesday-Blitz-September-26-2023"]
[Site "Chess.com"]
[Date "2023.09.26"]
[Round "7"]
[White "eCztery"]
[Black "hansen"]
[Result "0-1"]
[WhiteElo "2429"]
[BlackElo "2899"]
[TimeControl "180+1"]
[EndTime "15:15:03 PDT"]
[Termination "hansen won by checkmate"]

1. e4 {[%clk 0:03:00.9]} 1... c6 {[%clk 0:02:59.2]} 2. Nc3 {[%clk 0:02:58.1]}
2... d5 {[%clk 0:03:00.1]} 3. Qf3 {[%clk 0:02:56.6]} 3... e6 {[%clk 0:02:33]} 4.
d3 {[%clk 0:02:52]} 4... Nd7 {[%clk 0:02:31.9]} 5. Qg3 {[%clk 0:02:46.6]} 5...
Ngf6 {[%clk 0:02:30.9]} 6. Bd2 {[%clk 0:02:41.9]} 6... b5 {[%clk 0:02:28.3]} 7.
e5 {[%clk 0:02:25.1]} 7... Nh5 {[%clk 0:02:26.8]} 8. Qf3 {[%clk 0:02:06.6]} 8...
g6 {[%clk 0:02:25.5]} 9. d4 {[%clk 0:02:06]} 9... b4 {[%clk 0:02:25.9]} 10. Nce2
{[%clk 0:02:03.8]} 10... c5 {[%clk 0:02:24.4]} 11. c3 {[%clk 0:01:44.5]} 11...
Qb6 {[%clk 0:02:23.5]} 12. Nh3 {[%clk 0:01:36]} 12... Ba6 {[%clk 0:02:17.8]} 13.
Ng5 {[%clk 0:01:31.2]} 13... f6 {[%clk 0:02:10.9]} 14. exf6 {[%clk 0:01:29.1]}
14... Nhxf6 {[%clk 0:02:06.5]} 15. Nf4 {[%clk 0:01:25.9]} 15... Bxf1 {[%clk
0:02:04.7]} 16. Rxf1 {[%clk 0:01:17.8]} 16... cxd4 {[%clk 0:01:55.8]} 17. Ngxe6
{[%clk 0:01:08.6]} 17... bxc3 {[%clk 0:01:52.2]} 18. bxc3 {[%clk 0:01:06.3]}
18... dxc3 {[%clk 0:01:50.9]} 19. Qxc3 {[%clk 0:00:53.5]} 19... Bd6 {[%clk
0:01:42.3]} 20. Nxd5 {[%clk 0:00:46.6]} 20... Be5 {[%clk 0:01:04.1]} 21. Nxb6
{[%clk 0:00:36.6]} 21... Bxc3 {[%clk 0:01:04.3]} 22. Bxc3 {[%clk 0:00:20.4]}
22... axb6 {[%clk 0:01:04.6]} 23. Nc7+ {[%clk 0:00:19.1]} 23... Kf7 {[%clk
0:01:05.3]} 24. Nxa8 {[%clk 0:00:19.4]} 24... Rxa8 {[%clk 0:01:06.2]} 25. Kd2
{[%clk 0:00:18.6]} 25... Ne4+ {[%clk 0:01:04.3]} 26. Kc2 {[%clk 0:00:17.9]}
26... Rc8 {[%clk 0:01:03.9]} 27. Kd3 {[%clk 0:00:16.2]} 27... Nxc3 {[%clk
0:00:53.7]} 28. Rfc1 {[%clk 0:00:15.5]} 28... Ne5+ {[%clk 0:00:54.3]} 29. Kd2
{[%clk 0:00:12.1]} 29... Ne4+ {[%clk 0:00:53.4]} 30. Ke3 {[%clk 0:00:12.3]}
30... Nc5 {[%clk 0:00:52.1]} 31. f3 {[%clk 0:00:10.3]} 31... Ra8 {[%clk
0:00:50.3]} 32. Rab1 {[%clk 0:00:09.4]} 32... Ra3+ {[%clk 0:00:45.5]} 33. Kd4
{[%clk 0:00:04.9]} 33... Ncd7 {[%clk 0:00:29.9]} 34. Rc7 {[%clk 0:00:02.9]}
34... Ke6 {[%clk 0:00:26.2]} 35. f4 {[%clk 0:00:03.4]} 35... Kd6 {[%clk
0:00:22.4]} 36. Rb7 {[%clk 0:00:02.8]} 36... Ra4+ {[%clk 0:00:19.8]} 37. Ke3
{[%clk 0:00:02.5]} 37... Nc4+ {[%clk 0:00:18.2]} 38. Kf2 {[%clk 0:00:03]} 38...
Kc6 {[%clk 0:00:16.2]} 39. Rb8 {[%clk 0:00:03.6]} 39... Nxb8 {[%clk 0:00:16.3]}
40. Re1 {[%clk 0:00:03]} 40... Kd7 {[%clk 0:00:13.6]} 41. Kg3 {[%clk 0:00:03.6]}
41... Nd6 {[%clk 0:00:13.5]} 42. Kg4 {[%clk 0:00:03.6]} 42... Nf7 {[%clk
0:00:11.8]} 43. g3 {[%clk 0:00:03.2]} 43... Nc6 {[%clk 0:00:11.5]} 44. Rb1
{[%clk 0:00:02.8]} 44... Rb4 {[%clk 0:00:11]} 45. Rd1+ {[%clk 0:00:02.4]} 45...
Ke6 {[%clk 0:00:11.1]} 46. a3 {[%clk 0:00:03]} 46... Rb2 {[%clk 0:00:09.2]} 47.
Re1+ {[%clk 0:00:03.2]} 47... Kf6 {[%clk 0:00:09.5]} 48. h4 {[%clk 0:00:03.8]}
48... h5+ {[%clk 0:00:09.8]} 49. Kh3 {[%clk 0:00:03.8]} 49... Nd4 {[%clk
0:00:09.1]} 50. Rd1 {[%clk 0:00:04.1]} 50... Nf3 {[%clk 0:00:09.6]} 51. Rh1
{[%clk 0:00:03.3]} 51... Nh6 {[%clk 0:00:09.4]} 52. g4 {[%clk 0:00:02.6]} 52...
hxg4+ {[%clk 0:00:08.4]} 53. Kg3 {[%clk 0:00:03.5]} 53... Nd4 {[%clk 0:00:08.2]}
54. h5 {[%clk 0:00:04.4]} 54... Ndf5# {[%clk 0:00:08]} 0-1

[Event "Late-Titled-Tuesday-Blitz-September-26-2023"]
[Site "Chess.com"]
[Date "2023.09.26"]
[Round "7"]
[White "ejalmedina"]
[Black "Smiechu"]
[Result "0-1"]
[WhiteElo "2336"]
[BlackElo "2539"]
[TimeControl "180+1"]
[EndTime "15:15:04 PDT"]
[Termination "Smiechu won on time"]

1. d4 {[%clk 0:03:00.9]} 1... Nf6 {[%clk 0:02:59.5]} 2. c4 {[%clk 0:03:00.3]}
2... c5 {[%clk 0:03:00.1]} 3. d5 {[%clk 0:03:00.3]} 3... e6 {[%clk 0:03:00.7]}
4. Nc3 {[%clk 0:02:59.6]} 4... exd5 {[%clk 0:03:01.4]} 5. cxd5 {[%clk
0:03:00.5]} 5... d6 {[%clk 0:03:02]} 6. e4 {[%clk 0:02:59.2]} 6... g6 {[%clk
0:03:02.6]} 7. h3 {[%clk 0:02:59.7]} 7... Bg7 {[%clk 0:03:03.1]} 8. Nf3 {[%clk
0:03:00]} 8... O-O {[%clk 0:02:59.6]} 9. Bd3 {[%clk 0:03:00.5]} 9... b5 {[%clk
0:02:56.7]} 10. Nxb5 {[%clk 0:02:59.9]} 10... Re8 {[%clk 0:02:54.7]} 11. Nd2
{[%clk 0:02:54.8]} 11... Nxe4 {[%clk 0:02:46]} 12. Bxe4 {[%clk 0:02:49.9]} 12...
f5 {[%clk 0:02:45.8]} 13. O-O {[%clk 0:02:48.4]} 13... fxe4 {[%clk 0:02:45.9]}
14. Nc4 {[%clk 0:02:47.8]} 14... Ba6 {[%clk 0:02:28.3]} 15. Ncxd6 {[%clk
0:02:31]} 15... Be5 {[%clk 0:02:18.5]} 16. Nxe8 {[%clk 0:02:06.2]} 16... Bxb5
{[%clk 0:02:17.5]} 17. Qb3 {[%clk 0:02:06.2]} 17... Bxe8 {[%clk 0:02:10.8]} 18.
d6+ {[%clk 0:01:42.8]} 18... Bf7 {[%clk 0:02:10.6]} 19. Qb7 {[%clk 0:01:42.6]}
19... Nd7 {[%clk 0:02:10.5]} 20. Rd1 {[%clk 0:01:38.3]} 20... Bd4 {[%clk
0:01:52.6]} 21. Qxe4 {[%clk 0:01:28.8]} 21... Nf6 {[%clk 0:01:51.7]} 22. Qh4
{[%clk 0:01:19.5]} 22... Qxd6 {[%clk 0:01:46.4]} 23. Bg5 {[%clk 0:01:16.2]}
23... Rd8 {[%clk 0:01:23.6]} 24. Rxd4 {[%clk 0:01:03.5]} 24... Qxd4 {[%clk
0:00:52.5]} 25. Qxd4 {[%clk 0:01:03.2]} 25... cxd4 {[%clk 0:00:43.5]} 26. Bxf6
{[%clk 0:01:03.3]} 26... Rd6 {[%clk 0:00:43.7]} 27. Be5 {[%clk 0:01:00.5]} 27...
Rd5 {[%clk 0:00:43.9]} 28. f4 {[%clk 0:00:58.3]} 28... d3 {[%clk 0:00:43]} 29.
Kf2 {[%clk 0:00:54.6]} 29... Rd7 {[%clk 0:00:41.3]} 30. b3 {[%clk 0:00:50.8]}
30... a5 {[%clk 0:00:37.4]} 31. Ke3 {[%clk 0:00:42.8]} 31... h5 {[%clk 0:00:34]}
32. Rd1 {[%clk 0:00:39.2]} 32... g5 {[%clk 0:00:33.5]} 33. Rxd3 {[%clk
0:00:32.7]} 33... gxf4+ {[%clk 0:00:33.6]} 34. Bxf4 {[%clk 0:00:31.8]} 34...
Re7+ {[%clk 0:00:33.7]} 35. Kd4 {[%clk 0:00:28.5]} 35... Bg6 {[%clk 0:00:33.3]}
36. Re3 {[%clk 0:00:26.8]} 36... Rd7+ {[%clk 0:00:33.4]} 37. Kc5 {[%clk
0:00:24.5]} 37... Kf7 {[%clk 0:00:31.4]} 38. Be5 {[%clk 0:00:19]} 38... Rd2
{[%clk 0:00:29.9]} 39. Bc3 {[%clk 0:00:12.6]} 39... Rxa2 {[%clk 0:00:25.9]} 40.
g4 {[%clk 0:00:11.7]} 40... h4 {[%clk 0:00:25.4]} 41. Be1 {[%clk 0:00:10]} 41...
Rc2+ {[%clk 0:00:20.8]} 42. Kb5 {[%clk 0:00:09.2]} 42... Rb2 {[%clk 0:00:20.7]}
43. Kxa5 {[%clk 0:00:08.9]} 43... Bc2 {[%clk 0:00:17.2]} 44. Kb4 {[%clk
0:00:07.7]} 44... Rb1 {[%clk 0:00:17]} 45. Bxh4 {[%clk 0:00:05.1]} 45... Kg6
{[%clk 0:00:17.4]} 46. Be7 {[%clk 0:00:04.6]} 46... Rh1 {[%clk 0:00:15.5]} 47.
h4 {[%clk 0:00:03.8]} 47... Bd1 {[%clk 0:00:15.5]} 48. h5+ {[%clk 0:00:03.2]}
48... Kf7 {[%clk 0:00:15.8]} 49. h6 {[%clk 0:00:01.7]} 49... Bxg4 {[%clk
0:00:15.5]} 50. Bg5 {[%clk 0:00:01.5]} 50... Rh5 {[%clk 0:00:14.9]} 51. Bf4
{[%clk 0:00:01]} 51... Rh4 {[%clk 0:00:15]} 0-1